Workbook

Sheet Introduction
A3: . . . . . . . . . . . . . . . . . . . . . . . . . . . . . . . . . . . . . . . . . . . . . . . . .
B5: Guidelines For Estimating
B6: Weaner Pig (Nursery) Costs 6 to 26 kg
B7: =" Based on marketing "&FIXED('Weanling Input'!F15,0)&" pigs" -> Based on marketing 35,512 pigs
F10: Date: | G10: June, 2025
B15: This guide is designed to provide you with planning information and a format for calculating costs of production of a swine weaner 6 to 26 kg enterprise in Manitoba. This type of operation is intended to represent the second stage, or nursery, of a three stage pork system. General Manitoba Agriculture recommendations are assumed in using feed and veterinary inputs. These figures provide an economic evaluation of the livestock and estimated prices required to cover all costs. Costs include labour, investment and depreciation, but do not include management costs, nor do they necessarily represent the average cost of production in Manitoba.
B24: These budgets may be adjusted by putting in your own figures. As a producer you are encouraged to calculate your own costs of production. The assumptions on which the costs are based are outlined in the supporting pages. These assumptions were arrived at using the breeding stock, management practices, and facilities seen in modern, well managed swine operations of comparable size in Manitoba. Productivity and performance assumptions are based on information collected by department specialists, feed companies and other organizations. Where individual herd productivity and performance levels differ from those listed, adjustments will be required.
B34: This tool is available as an Excel worksheet at:
B41: is also available to help
B42: determine machinery costs.
B49: Note: This budget is only a guide and is not intended as an in-depth study of the cost of production of this industry. Interpretation and use of this information is the responsibility of the user. If you need help with a budget, contact a Farm Management Specialist.

Sheet Assumptions
A2: Weaner Pig (Nursery) Costs 6 to 26 kg Cost of Production
B5: The following farrow wean cost of production budget is based on the assumption that all feed is purchased.
B8: ="The budget includes a land investment cost for "&'Fixed Cost'!D27&" acres, with "&'Fixed Cost'!C40&" acres rented out at $"&'Fixed Cost'!C41&" per acre, of the estimated "&ROUND(((('Weanling Input'!C98*'Weanling Input'!H100)/(40.768*2))*2.4709661),0)&" to "&ROUND(((('Weanling Input'!C98*'Weanling Input'!H100)/(26.362*2))*2.4709661),0)&" acres of total landbase that would be required for this size of livestock operation. This land base falls within the 2XP2O5 application rate, soil phosphorus levels permitting." -> The budget includes a land investment cost for 40 acres, with 0 acres rented out at $100 per acre, of the estimated 81 to 126 acres of total landbase that would be required for this size of livestock operation. This land base falls within the 2XP2O5 application rate, soil phosphorus levels permitting.
B12: The rations illustrated in this budget are examples only. Individual farm conditions should be taken into account when formulating the diets. Producers need to know what the feed intakes of their animals are. Please consult with a nutritionist for diet formulations suggestions.
B17: The Manitoba pork production industry profile is changing and this budget was specifically designed to address the need of producers who may want to analyze the cost of starting up or switching to a swine nursery 6 to 26 kg operation. Several companies are offering contracts with varying levels of guarantees. Producers need to accurately calculate their costs before they can properly make a decision.

Sheet Weaner-Summary
A1: ="Weaner Pig (Nursery) 6 to 26 kg Summary - "&Introduction!G10 -> Weaner Pig (Nursery) 6 to 26 kg Summary - June, 2025
E3: Purchased Feed
E4: $/Pig | F4: Total
A5: A. Operating Costs | E5: Sold | F5: Cost | H5: Your Cost
A6: 1. | B6: Feed Costs:
B7: Pre Starter 1 | E7: ='Weanling Input'!E42 -> 1.23 | F7: =ROUND(E7*'Weanling Input'!$F$15,0) -> 43680
B8: Pre Starter 2 | E8: ='Weanling Input'!F42 -> 4.1 | F8: =ROUND(E8*'Weanling Input'!$F$15,0) -> 145599
B9: Starter 1 | E9: ='Weanling Input'!G42 -> 10.09 | F9: =ROUND(E9*'Weanling Input'!$F$15,0) -> 358316
B10: Starter 2 | E10: ='Weanling Input'!H42 -> 11.06 | F10: =ROUND(E10*'Weanling Input'!$F$15,0) -> 392763
A11: Total Feed Cost | E11: =SUM(E7:E10) -> 26.48 | F11: =SUM(F7:F10) -> 940358
A13: 2. | B13: Other Operating Costs:
B14: Weanling cost | E14: ='Weanling Input'!F18 -> 63 | F14: =ROUND(E14*'Weanling Input'!$F$15,0) -> 2237256
B15: Veterinary Medicine & Supplies | E15: ='Weanling Input'!C50 -> 2.815949538 | F15: =ROUND(E15*'Weanling Input'!$F$15,0) -> 100000
B16: Maintenance & Repairs | E16: ='Weanling Input'!C56 -> 0.1866022753 | F16: =ROUND(E16*'Weanling Input'!$F$15,0) -> 6627
B17: Hydro & Propane | E17: ='Weanling Input'!C64 -> 1.581099347 | F17: =ROUND(E17*'Weanling Input'!$F$15,0) -> 56148
B18: Insurance | E18: ='Weanling Input'!C84 -> 0.4624034692 | F18: =ROUND(E18*'Weanling Input'!$F$15,0) -> 16421
B19: Manure Costs | E19: ='Weanling Input'!C114 -> 0.3869758225 | F19: =ROUND(E19*'Weanling Input'!$F$15,0) -> 13742
B20: Office Supplies | E20: ='Weanling Input'!C120 -> 0.0439288128 | F20: =ROUND(E20*'Weanling Input'!$F$15,0) -> 1560
B21: Levy, Marketing & Transportation | E21: ='Weanling Input'!C130 -> 3.74 | F21: =ROUND(E21*'Weanling Input'!$F$15,0) -> 132815
B22: Property Taxes | E22: ='Weanling Input'!C159 -> 0.298490651 | F22: =ROUND(E22*'Weanling Input'!$F$15,0) -> 10600
A23: Subtotal Operating Costs | E23: =SUM(E11:E22) -> 98.99544992 | F23: =SUM(F11:F22) -> 3515527
B24: 2.10 | C24: Interest on Operating Cost | E24: ='Weanling Input'!C147 -> 0.6524200312 | F24: =ROUND(E24*'Weanling Input'!$F$15,0) -> 23169
A25: Total Operating Costs | E25: =E23+E24 -> 99.64786995 | F25: =F23+F24 -> 3538696
A27: B. Fixed Costs
B28: Buildings & Manure Storage | E28: ='Fixed Cost'!D23 -> 1.924332762 | F28: =ROUND(E28*'Weanling Input'!$F$15,0) -> 68337
B29: Barn Equipment | E29: ='Fixed Cost'!I23 -> 2.722037299 | F29: =ROUND(E29*'Weanling Input'!$F$15,0) -> 96665
B30: Land | E30: ='Fixed Cost'!D37 -> 0.3815929792 | F30: =ROUND(E30*'Weanling Input'!$F$15,0) -> 13551
A31: Total Fixed Costs | E31: =SUM(E28:E30) -> 5.02796304 | F31: =SUM(F28:F30) -> 178553
A33: C. Labour
B34: Wages, benefits and hired manager | E34: ='Weanling Input'!C167 -> 1.897724713 | F34: =ROUND(E34*'Weanling Input'!$F$15,0) -> 67392
A36: Total Cost of Production | E36: =E25+E31+E34 -> 106.5735577 | F36: =F25+F31+F34 -> 3784641
A38: Profitability and Breakeven Analysis
A40: Estimated Farmgate | E40: Per Pig | F40: Total
B41: Market Price per weanling | E41: ='Weanling Input'!F16 -> 87 | F41: =ROUND(E41*'Weanling Input'!$F$15,0) -> 3089544
B42: Land rental per head sold | E42: =SUM('Fixed Cost'!C40*'Fixed Cost'!C41)/'Weanling Input'!F15 -> 0 | F42: =ROUND(E42*'Weanling Input'!$F$15,0) -> 0
B43: Gross Revenue / hog | E43: =SUM(E41:E42) -> 87 | F43: =SUM(F41:F42) -> 3089544
A45: Marginal Returns
B46: Over Operating Costs | E46: =SUM(E43-E25) -> -12.64786995 | F46: =ROUND(E46*'Weanling Input'!$F$15,0) -> -449151
B47: Over Operating & Labour Costs | E47: =SUM(E43-E25-E34) -> -14.54559466 | F47: =ROUND(E47*'Weanling Input'!$F$15,0) -> -516543
B48: Over Total Costs (Net Profit) | E48: =SUM(E43-E36) -> -19.5735577 | F48: =ROUND(E48*'Weanling Input'!$F$15,0) -> -695096
A50: Operating Expense Ratio | E50: =SUM(E25/E43) -> 1.145377815
A52: Breakeven Selling Price | E52: $/Pig
B53: Operating Costs | E53: =E25 -> 99.64786995
B54: Operating & Labour Costs | E54: =E25+E34 -> 101.5455947
B55: Total Costs | E55: =E36 -> 106.5735577
A57: Return On Assets (ROA) | E57: =SUM(((E48+E24+'Fixed Cost'!G58)*'Weanling Input'!$F$15)/(('Fixed Cost'!D43)+(('Weanling Input'!F16/2)*'Weanling Input'!F10))) -> -0.3854085747
A59: Note: This budget is only a guide and is not intended as an in depth study of the cost of production of this industry. Interpretation and utilization of this information is the responsibility of the user.

Sheet Risk Analysis
A1: Risk & Sensitivity Analysis
C3: Purchased Feed
C4: Per Pig
A5: A. Operating Costs
B6: Feed cost | C6: ='Weaner-Summary'!E11 -> 26.48
B7: Weanling cost | C7: ='Weanling Input'!F18 -> 63
B8: Other Operating Costs | C8: =SUM('Weaner-Summary'!E25-'Risk Analysis'!C6-'Risk Analysis'!C7) -> 10.16786995
B9: Subtotal | C9: =SUM(C6:C8) -> 99.64786995
A10: B. Fixed Costs | C10: ='Weaner-Summary'!E31 -> 5.02796304
A11: C. Labour | C11: ='Weaner-Summary'!E34 -> 1.897724713
A12: Total Costs | C12: =SUM(C9:C11) -> 106.5735577
A14: Estimated Farmgate
B15: Price ($ per weanling) | C15: ='Weanling Input'!F16 -> 87
C18: Up | D18: Down
B19: Percent Market Price Variation | C19: 0.1 | D19: 0.1
B20: Percent Feed Cost Variation | C20: 0.1 | D20: 0.05
B21: Percent Weanling Cost Variation | C21: 0.05 | D21: 0.05
B24: Higher Market Price | C24: =SUM(C15*(1+C19)) -> 95.7
B25: Lower Market Price | C25: =SUM(C15*(1-D19)) -> 78.3
B26: Higher Feed Cost | C26: =SUM(C6+(C6*C20)) -> 29.128
B27: Lower Feed Cost | C27: =SUM(C6-(C6*D20)) -> 25.156
B28: Higher Weanling Purchase Cost | C28: =SUM(C7*(1+C21)) -> 66.15
B29: Lower Weanling Purchase Cost | C29: =SUM(C7*(1-D21)) -> 59.85
A31: ="Higher Margin Scenario - Market Price Up "&C19*100&"%, Feed Price Down "&D20*100&"% and Weanling Purchase Cost Down "&D21*100&"%" -> Higher Margin Scenario - Market Price Up 10%, Feed Price Down 5% and Weanling Purchase Cost Down 5%
B32: Operating Costs | C32: =SUM(C29+C27+C8) -> 95.17386995
B33: Total Costs | C33: =C32+C11+C10 -> 102.0995577
B34: Gross Revenue / hog | C34: =C24 -> 95.7
B35: Marginal Returns
B36: Over Operating Costs | C36: =SUM(C34-C32) -> 0.5261300531
B37: Over Operating & Labour Costs | C37: =SUM(C34-C32-C11) -> -1.37159466
B38: Over Total Costs (Net Profit) | C38: =SUM(C34-C33) -> -6.3995577
B39: Operating Expense Ratio | C39: =SUM(C32/C34) -> 0.9945022983
A41: ="Lower Margin Scenario - Market Price Down "&D19*100&"%, Feed Price Up "&C20*100&"% and Weanling Purchase Cost Up "&C21*100&"%" -> Lower Margin Scenario - Market Price Down 10%, Feed Price Up 10% and Weanling Purchase Cost Up 5%
B42: Operating Costs | C42: =SUM(C8+C26+C28) -> 105.4458699
B43: Total Costs | C43: =C10+C11+C42 -> 112.3715577
B44: Gross Revenue / hog | C44: =C25 -> 78.3
B45: Marginal Returns
B46: Over Operating Costs | C46: =SUM(C44-C42) -> -27.14586995
B47: Over Operating & Labour Costs | C47: =SUM(C44-C42-C11) -> -29.04359466
B48: Over Total Costs (Net Profit) | C48: =SUM(C44-C43) -> -34.0715577
B49: Operating Expense Ratio | C49: =SUM(C42/C44) -> 1.346690548
A52: Note: This budget is only a guide and is not intended as an in depth study of the cost of production of this industry. Interpretation and utilization of this information is the responsibility of the user.

Sheet Weanling Input
A2: Weaner Pig (Nursery) Production Costs 6 to 26 kg
A4: 1. This input table outlines the cost of production for the weaner barn only.
A5: 2. Buildings and equipment are valued at new cost.
A6: 3. Manure haulage is contracted out.
A8: Herd Profile
A10: Weaner Pig Places | F10: 5200
A11: Number of turns | F11: 7
A12: Weaner Pigs Purchased | F12: =F10*F11 -> 36400
A13: Percent Post-Weaning Mortality | F13: 2.44
A14: Pigs Died, Post-Weaning | F14: =ROUND(F13*F12/100,0) -> 888
A15: Weaner Pigs Sold | F15: =ROUND(F12-F14,0) -> 35512
A16: Average Market Price | F16: 87
A17: Weanling Formula Factor (% of Mkt Price) | F17: 64.44 | G17: %
A18: Calculated Weanling Puchase Price | F18: 63 | G18: /pig
E20: Pre Starter 1 | F20: Pre Starter 2 | G20: Starter 1 | H20: Starter 2
A21: Weaner Pig Efficiency | E21: Ration 1 | F21: Ration 2 | G21: Ration 3 | H21: Ration 4
A22: Days Post-Weaning (nursery) | E22: 3 | F22: 8 | G22: 17 | H22: 14 | I22: =SUM(E22:H22) -> 42
A23: Target Starting Weight (kg) | E23: 6 | F23: 6.5 | G23: 9 | H23: 16.5 | I23: =E23 -> 6
A24: Target Ending Weight (kg) | E24: 6.5 | F24: 9 | G24: 16.5 | H24: 26 | I24: =H24 -> 26
A25: Average Daily Gain (kg) | E25: =(E24-E23)/E22 -> 0.1666666667 | F25: =(F24-F23)/F22 -> 0.3125 | G25: =(G24-G23)/G22 -> 0.4411764706 | H25: =(H24-H23)/H22 -> 0.6785714286 | I25: =((E25*($E$24-$E$23)+F25*($F$24-$F$23)+G25*($G$24-$G$23)+H25*($H$24-$H$23)))/($I$24-$I$23) -> 0.5309917717
A27: Days Weaner on feed (nursery) | F27: =I22 -> 42 | G27: days
A28: Total Cycle Days (per turn) | F28: =ROUND(365/F11,0) -> 52 | G28: days
A29: Target Starting Weight | F29: =I23 -> 6 | G29: kg
A30: Target Ending Weight | F30: =I24 -> 26 | G30: kg
A31: Feed Conversion Ratio (feed:gain) | F31: =I36 -> 1.66 | G31: kg
A32: Average Daily Gain | F32: =I25 -> 0.5309917717 | G32: kg
A34: Feed Requirements and Costs | E34: Ration 1 | F34: Ration 2 | G34: Ration 3 | H34: Ration 4
C35: kg weight gain/pig | E35: =SUM(E24-E23) -> 0.5 | F35: =SUM(F24-F23) -> 2.5 | G35: 7.5 | H35: 9.5
B36: x | C36: FCR (Feed:Gain) | E36: =E37/(E24-E23) -> 1.6 | F36: =F37/(F24-F23) -> 1.6 | G36: =G37/(G24-G23) -> 1.586666667 | H36: =H37/(H24-H23) -> 1.736842105 | I36: =((E36*($E$24-$E$23)+F36*($F$24-$F$23)+G36*($G$24-$G$23)+H36*($H$24-$H$23)))/($I$24-$I$23) -> 1.66
B37: = | C37: kg ration/pig | E37: 0.8 | F37: 4 | G37: 11.9 | H37: 16.5
B38: x | C38: ration cost per tonne | E38: 1502 | F38: 1000 | G38: 827 | H38: 654
B39: ÷ | C39: kg/tonne | E39: 1000 | F39: 1000 | G39: 1000 | H39: 1000
B40: x | C40: weanlings purchased | E40: =$F$12 -> 36400 | F40: =$F$12 -> 36400 | G40: 36400 | H40: 36400
B41: ÷ | C41: pigs sold | E41: =$F$15 -> 35512 | F41: =$F$15 -> 35512 | G41: 35512 | H41: 35512
B42: = | C42: /pig sold | E42: =ROUND(((E37*E38/1000)*E40)/E41,2) -> 1.23 | F42: =ROUND(((F37*F38/1000)*F40)/F41,2) -> 4.1 | G42: =ROUND(((G37*G38/1000)*G40)/G41,2) -> 10.09 | H42: =ROUND(((H37*H38/1000)*H40)/H41,2) -> 11.06
A44: Other Operating Costs, Taxes and Land
A46: Veterinary Cost
C47: 2000 | E47: professional services
B48: + | C48: 98000 | E48: medication
B49: ÷ | C49: =F15 -> 35512 | E49: pigs sold
B50: = | C50: =(C47+C48)/C49 -> 2.815949538 | E50: /pig sold
A52: Maintenance & Repairs
C53: 0.55 | E53: % of total capital investment
B54: x | C54: ='Fixed Cost'!D10+'Fixed Cost'!I10 -> 1204840 | E54: total buildings and equipment cost
B55: ÷ | C55: =F15 -> 35512 | E55: pigs sold
B56: = | C56: =C53/100*C54/C55 -> 0.1866022753 | E56: /pig sold
A58: Utilities
C59: 0.09324 | D59: /kwhr | E59: Hydro rate
B60: x | C60: 200000 | D60: kwhr | E60: Hydro usage
C61: 0.75 | D61: /litre | E61: Propane rate
B62: x | C62: 50000 | D62: litres | E62: Propane usage
B63: ÷ | C63: =F15 -> 35512 | E63: pigs sold
B64: = | C64: =((C59*C60)+(C61*C62))/C63 -> 1.581099347 | E64: /pig sold
A66: Insurance
C67: ='Fixed Cost'!D10+'Fixed Cost'!I10 -> 1204840 | E67: value - buildings & equipment
B68: x | C68: 0.78 | E68: /$100 Capital Invested
B69: ÷ | C69: =F15 -> 35512 | E69: pigs sold
B70: = | C70: =C68*C67/100/C69 -> 0.264635954 | E70: /pig sold
C72: =F10 -> 5200 | E72: average number pigs in barn
B73: x | C73: =F16 -> 87 | E73: estimated market value of hogs
B74: x | C74: 0.88 | E74: /$100 Capital Invested
B75: ÷ | C75: =F15 -> 35512 | E75: pigs sold
B76: = | C76: =(((C72*C73)*C74)/100)/C75 -> 0.1121063303 | E76: /pig sold
C78: 75 | E78: Business Interruption Insured value
B79: x | C79: =F10 -> 5200 | E79: average number in barn
B80: x | C80: 0.78 | E80: rate /$100
B81: ÷ | C81: =F15 -> 35512 | E81: pigs sold
B82: = | C82: =((C78*C79)*C80/100)/C81 -> 0.08566118495 | E82: /pig sold
B84: = | C84: =C70+C76+C82 -> 0.4624034692 | E84: /pig sold
A86: Manure Costs
B87: Haulage | E87: 2.4 | F87: litres/pig/day
B88: x | C88: 365 | E88: days/year
B89: x | C89: =F10 -> 5200 | E89: average inventory of pigs
B90: x | C90: 0.003 | E90: /litre = | F90: =C90*4.54609 -> 0.01363827 | G90: /gallon
B91: ÷ | C91: =F15 -> 35512 | E91: pigs sold
B92: = | C92: =(E87*C88*C89*C90)/C91 -> 0.3848164001 | E92: /pig sold
B93: Estimated Nutrient Value
C94: =E87 -> 2.4 | E94: litres/pig/day
B95: x | C95: 365 | E95: days/year
B96: x | C96: =F10 -> 5200 | E96: average inventory of pigs
B97: ÷ | C97: 1000
B98: = | C98: =SUM((C94*C95*C96)/1000) -> 4555.2 | E98: # of 1000 litres of manure
G99: Nitrogen | H99: Phosphate | I99: Potassium
C100: kg per 1000 litres | G100: 2.62 | H100: 0.59 | I100: 1.37
B101: x | C101: # of 1000 litres of manure | G101: =C98 -> 4555.2 | H101: =C98 -> 4555.2 | I101: =C98 -> 4555.2
B102: x | C102: % nutrient value recovery | G102: 60 | H102: 0 | I102: 0
B103: ÷ | C103: lbs per kg | G103: 2.2045855 | H103: 2.2045855 | I103: 2.2045855
B104: x | C104: fertilizer value per lb. | G104: 0.9 | H104: 0.9 | I104: 0.5
B105: ÷ | C105: pigs sold | G105: =F15 -> 35512 | H105: =F15 -> 35512 | I105: =F15 -> 35512
B106: = | C106: estimated nutrient value / pig sold | G106: =SUM((G100*G101*(G102/100)/G103)*G104)/G105 -> 0.08231906373 | H106: =SUM((H100*H101*(H102/100)/H103)*H104)/H105 -> 0 | I106: =SUM((I100*I101*(I102/100)/I103)*I104)/I105 -> 0
G107: * kg/1000 L x 10 = lbs/1000 imp. Gallons
B108: Odour control & Mgmt Fees
C109: 0 | E109: Odour control (barley straw)
B110: + | C110: 3000 | E110: Manure Management Fee
B111: ÷ | C111: =F15 -> 35512 | E111: pigs sold
B112: = | C112: =(C109+C110)/C111 -> 0.08447848615 | E112: /pig sold
B114: = | C114: =C92+C112-(G106+H106+I106) -> 0.3869758225 | E114: /pig sold
A116: Office Supplies
C117: 0.3 | E117: /pig place
B118: x | C118: =F10 -> 5200 | E118: pig places
B119: ÷ | C119: =F15 -> 35512 | E119: pigs sold
B120: = | C120: =C117*C118/C119 -> 0.0439288128 | E120: /pig sold
A122: Marketing & Transportation
C123: 3.5 | D123: Trucking in
B124: + | C124: 0 | D124: Trucking out
B125: + | C125: 0.19 | D125: Council Levy
B126: + | C126: 0 | D126: Grading Charge
B127: + | C127: 0 | D127: Truck Washing
B128: + | C128: 0.05 | D128: Insurance
B129: + | C129: 0 | D129: Special Levy
B130: = | C130: =SUM(C123:C129) -> 3.74 | E130: /pig sold
A132: Interest on Operating Cost | E132: 7 | F132: %
C133: =F18 -> 63 | E133: weaner cost
B134: x | C134: =I22 -> 42 | E134: total days to market
B135: x | C135: =E132 -> 7 | E135: % operating rate
B136: ÷ | C136: 365 | E136: days/year
B137: = | C137: =C133*C134*C135/100/C136 -> 0.5074520548 | E137: /pig sold
C139: ='Weaner-Summary'!E23 -> 98.99544992 | E139: subtotal operating cost
B140: - | C140: =C133 -> 63 | E140: weaner cost
B141: ÷ | C141: 2 | E141: average
B142: x | C142: =C134 -> 42 | E142: total days to market
B143: ÷ | C143: 365 | E143: days/year
B144: x | C144: =C135 -> 7 | E144: % operating rate
B145: = | C145: =((((C139-C140)/C141)*C142)*C144/100)/C143 -> 0.1449679764 | E145: /pig sold
B147: = | C147: =C137+C145 -> 0.6524200312 | E147: /pig sold
A149: Property Taxes
C150: 10000 | E150: taxes on grower-finisher barn & land
B151: ÷ | C151: =F15 -> 35512 | E151: pigs sold
B152: = | C152: =C150/C151 -> 0.2815949538 | E152: /pig sold
C154: 15 | E154: taxes on land
B155: x | C155: ='Fixed Cost'!D27 -> 40 | E155: acres
B156: ÷ | C156: =F15 -> 35512 | E156: pigs sold
B157: = | C157: =(C154*C155)/C156 -> 0.01689569723 | E157: /pig sold
B159: = | C159: =C152+C157 -> 0.298490651 | E159: /pig sold
A161: Labour
C162: =ROUND((((F10/2600)*0.5)*(40*52))/(52),-1)+8 -> 48 | D162: hours/week
B163: x | C163: 52 | D163: weeks/year
B164: = | C164: =C162*52 -> 2496 | D164: total hours/year
B165: x | C165: 27 | D165: wage/hour (includes hired manager)
B166: ÷ | C166: =F15 -> 35512 | D166: pigs sold
B167: = | C167: =C164*C165/C166 -> 1.897724713 | D167: /pig sold
A169: ** FOOTNOTE: 1 cubic metre = 1000 litres
D170: 1 cubic metre = 35.314 cubic feet
D171: 1 cubic metre = 219.97 imperial gallons

Sheet Fixed Cost
A1: Fixed Costs
B3: Pig Places1 | C3: ='Weanling Input'!F10 -> 5200 | D3: 3 | E3: ft.2 per Pig Place | G3: =D3*C3 -> 15600 | H3: ft.2 Total
A5: Buildings | C5: $/pig place | D5: Total | F5: Barn Equipment | H5: $/pig place | I5: Total
B6: Barn Cost | C6: 126 | D6: =C6*$C$3 -> 655200 | E6: ="($"&SUM(C6*$C$3)/$G$3&"/sq.ft.) " -> ($42/sq.ft.) | G6: Weaner Barn | H6: 70 | I6: =H6*$C$3 -> 364000 | J6: ="($"&ROUND((H6*$C$3)/$G$3,0)&"/sq.ft.) " -> ($23/sq.ft.)
B7: Office and Loading (300 sq.ft.) | C7: 1.75 | D7: =C7*$C$3 -> 9100 | E7: ="($"&ROUND((C7*$C$3)/300,0)&"/sq.ft.) " -> ($30/sq.ft.) | G7: Other | H7: 20 | I7: =H7*$C$3 -> 104000 | L7: *HIDE*
B8: Manure Storage | C8: 8.25 | D8: =C8*$C$3 -> 42900 | G8: Fire Alarm System | H8: 0.2 | I8: =H8*$C$3 -> 1040 | L8: =(#REF!-#REF!)/(#REF!+#REF!) -> 
B9: Standby Generator | C9: 3 | D9: =C9*$C$3 -> 15600 | G9: Storage Bins | H9: 2.5 | I9: =H9*$C$3 -> 13000
B10: Total Barn Cost | C10: =SUM(C6:C9) -> 139 | D10: =SUM(D6:D9) -> 722800 | G10: Total Equipment Cost | H10: =SUM(H6:H9) -> 92.7 | I10: =SUM(I6:I9) -> 482040
B12: Residual Value (End of Useful Life) | D12: 0.5 | G12: Residual Value (End of Useful Life) | I12: 0.1
B13: Useful Life (years) | D13: 25 | G13: Useful Life (years) | I13: 10
B14: Owned Barn Equity | D14: 0.25 | G14: Owned Barn Equipment Equity | I14: 0.25
B15: Barn Financed | D15: =SUM(1-D14) -> 0.75 | G15: Barn Equipment Financed | I15: =SUM(1-I14) -> 0.75
B16: Barn Opportunity Cost (Investment Rate) | D16: 0.015 | G16: Equipment Opportunity Cost (Investment Rate) | I16: 0.015
B17: Buildings Cost | G17: Barn Equipment Cost
B18: Finance Rate & Term | C18: 0.07 | D18: 20 | E18: Years | G18: Finance Rate & Term | H18: 0.07 | I18: 10 | J18: Years
B19: Principle & Interest Cost | D19: =-PMT(C18,D18,D10*D15,0) -> 51170.40505 | G19: Principle & Interest Cost | I19: =-PMT(H18,I18,I10*I15,0) -> 51473.73856
B20: Buildings Depreciation Cost | D20: =(D10-(D10*D12))/D13 -> 14456 | G20: Equipment Depreciation Cost | I20: =(I10-(I10*I12))/I13 -> 43383.6
B21: Owned Building Opportunity Cost | D21: =SUM(D10*D14)*(D16) -> 2710.5 | G21: Owned Equipment Opportunity Cost | I21: =SUM(I10*I14)*(I16) -> 1807.65
B22: Total Cost | D22: =SUM(D19:D21) -> 68336.90505 | G22: Total Cost | I22: =SUM(I19:I21) -> 96664.98856
B23: =" Total Cost $/pig sold (based on "&TEXT('Weanling Input'!F15,"#,###")&")" -> Total Cost $/pig sold (based on 35,512) | D23: =D22/'Weanling Input'!F15 -> 1.924332762 | G23: =" Total Cost $/pig sold (based on "&TEXT('Weanling Input'!F15,"#,###")&")" -> Total Cost $/pig sold (based on 35,512) | I23: =I22/'Weanling Input'!F15 -> 2.722037299
L24: w/o harvest
A25: Land | L25: =-PMT($C$18,$D$18,L8*$D$15,0) -> 
B26: Average Land value ($/acre) | D26: 4000
B27: Acres | D27: 40
B28: Site preparation cost | D28: 36000 | L28: =(L8-(L8*$D$12))/$D$13 -> 
B29: Owned Land Equity | D29: 0.25
B30: Land Financed | D30: =SUM(1-D29) -> 0.75
B31: Land Opportunity Cost (Investment Rate) | D31: 0.015
B32: Land cost
B33: Finance Rate & Term | C33: 0.06 | D33: 20 | E33: Years
B34: Principle & Interest Cost | D34: =-PMT(C33,D33,((D26*D27)+D28)*D30,0) -> 12816.12988 | E34: =-IPMT(C33,D33,((D26*D27)+D28)*D30,0) -> 0
B35: Owned Land Opportunity Cost | D35: =SUM(((D26*D27)+D28)*D29)*(D31) -> 735
B36: Total Cost | D36: =SUM(D34:D35) -> 13551.12988
B37: =" Total Cost $/pig sold (based on "&TEXT('Weanling Input'!F15,"#,###")&")" -> Total Cost $/pig sold (based on 35,512) | D37: =D36/'Weanling Input'!F15 -> 0.3815929792
B39: Land Rental
B40: Number of Acres rented out | C40: 0 | D40: acres
B41: Land rental rate (income) | C41: 100 | D41: /acre
B43: Total Capital Investment | D43: =D10+I10+(D26*D27)+D28 -> 1400840
B44: Total Capital Investment / Pig Place | D44: =D43/C3 -> 269.3923077
A46: ¹ FOOTNOTE: The number of square feet in the building and the cost per square foot for buildings and equipment are approximations only. A certified building plan which is designed according to the average inventory of grower-finisher pigs should be used in order to get the exact dimensions and area for new buildings.
A48: 1 sq.ft. = 0.0929 sq.m; 1 sq.m.= 10.764 sq.ft.; 1 ft.= 0.3048 m
A49: 1 cubic metre = 1000 litres; 1 cubic metre = 35.314 cubic feet; 1 cubic metre = 219.97 imperial gallons
C53: pmt | D53: years | E53: loan amt | G53: interest
B54: Buildings | C54: =D19 -> 51170.40505 | D54: =D18 -> 20 | E54: =D10*D15 -> 542100 | G54: =SUM(((C54*D54)-E54)/D54) -> 24065.40505
B55: equipment | C55: =I19 -> 51473.73856 | D55: =I13 -> 10 | E55: =I10*I15 -> 361530 | G55: =SUM(((C55*D55)-E55)/D55) -> 15320.73856
B56: land | C56: =D34 -> 12816.12988 | D56: =D33 -> 20 | E56: =((D26*D27)+D28)*D30 -> 147000 | G56: =SUM(((C56*D56)-E56)/D56) -> 5466.129876
G57: =SUM(G54:G56) -> 44852.27348 | H57: total
G58: =G57/'Weanling Input'!F15 -> 1.263017388 | H58: per pig

Sheet Ingredient-Summary
A1: Summary of Purchased Feed Ingredients Used
E3: Total per | F3: Total | G3: Total | H3: Total per
E4: Pig Mkt | F4: per Year | G4: per Month | H4: Pig Mkt
E5: (kgs) | F5: (tonnes) | G5: (tonnes) | H5: (lbs)
B6: Pre starter 1 | E6: =F6/$F$12*1000 -> 0.8200045055 | F6: =IF('Weanling Input'!E38<=0,0,'Weanling Input'!E37*'Weanling Input'!F12/1000) -> 29.12 | G6: =F6/12 -> 2.426666667 | H6: =E6*2.2046 -> 1.807781933
B7: Pre starter 2 | E7: =F7/$F$12*1000 -> 4.100022528 | F7: =IF('Weanling Input'!F38<=0,0,'Weanling Input'!F37*'Weanling Input'!F12/1000) -> 145.6 | G7: =F7/12 -> 12.13333333 | H7: =E7*2.2046 -> 9.038909664
B8: Starter 1 | E8: =F8/$F$12*1000 -> 12.19756702 | F8: =IF('Weanling Input'!G38<=0,0,'Weanling Input'!G37*'Weanling Input'!F12/1000) -> 433.16 | G8: =F8/12 -> 36.09666667 | H8: =E8*2.2046 -> 26.89075625
B9: Starter 2 | E9: =F9/$F$12*1000 -> 16.91259293 | F9: =IF('Weanling Input'!H38<=0,0,'Weanling Input'!H37*'Weanling Input'!F12/1000) -> 600.6 | G9: =F9/12 -> 50.05 | H9: =E9*2.2046 -> 37.28550237
B10: Total | E10: =SUM(E6:E9) -> 34.03018698 | F10: =SUM(F6:F9) -> 1208.48 | G10: =SUM(G6:G9) -> 100.7066667 | H10: =SUM(H6:H9) -> 75.02295021
D12: Total pigs sold | F12: ='Weanling Input'!F15 -> 35512
